fUSD/lending_fUSD_20241227
["ID","MTS","AMOUNT","RATE_DAILY","PERIOD"]
[346875244,1735336278005,-421.117329,0.00012329,2]
[346875245,1735336278015,-421.117329,0.00012329,2]
[346875246,1735336278025,-421.117329,0.00012329,2]
[346875247,1735336278034,-421.117329,0.00012329,2]
[346875248,1735336278044,-421.117329,0.00012329,2]
[346875249,1735336278053,-421.117329,0.00012329,2]
[346875250,1735336278063,-151.0,0.00012329,2]
[346875251,1735336278072,-151.0,0.00012329,2]
[346875252,1735336278137,-151.0,0.00012329,2]
[346875253,1735336278149,-151.0,0.00012329,2]
[346875254,1735336278158,-151.0,0.00012329,2]
[346875255,1735336278167,-151.0,0.00012329,2]
[346875256,1735336278177,-151.0,0.00012329,2]
[346875257,1735336278187,-151.0,0.00012329,2]
[346875258,1735336278196,-151.0,0.00012329,2]
[346875259,1735336278206,-151.0,0.00012329,2]
[346875260,1735336278215,-151.0,0.00012329,2]
[346875261,1735336278225,-249.529156,0.00012329,2]
[346875262,1735336278235,-151.0,0.00012329,2]
[346875263,1735336278244,-151.0,0.00012329,2]
[346875264,1735336278254,-151.0,0.00012329,2]
[346875265,1735336278264,-151.0,0.00012329,2]
[346875266,1735336278273,-269.339002,0.00012329,2]
[346875267,1735336278283,-151.0,0.00012329,2]
[346875268,1735336278292,-151.0,0.00012329,2]
[346875269,1735336278302,-151.0,0.00012329,2]
[346875270,1735336278311,-151.0,0.00012329,2]
[346875271,1735336278321,-151.0,0.00012329,2]
[346875272,1735336278330,-151.0,0.00012329,2]
[346875273,1735336278339,-151.0,0.00012329,2]
[346875274,1735336278348,-151.0,0.00012329,2]
[346875275,1735336278358,-151.0,0.00012329,2]
[346875276,1735336278367,-151.0,0.00012329,2]
[346875277,1735336278376,-151.0,0.00012329,2]
[346875278,1735336278386,-151.0,0.00012329,2]
[346875279,1735336278399,-226.179348,0.00012329,2]
[346875280,1735336278409,-151.0,0.00012329,2]
[346875281,1735336278419,-151.0,0.00012329,2]
[346875282,1735336278428,-151.0,0.00012329,2]
[346875283,1735336278438,-157.492866,0.00012329,2]
[346875284,1735336278447,-1024.424028,0.00012329,2]
[346875285,1735336278457,-151.197301,0.00012329,2]
[346875286,1735336278466,-1024.424028,0.00012329,2]
[346875287,1735336278475,-1024.424028,0.00012329,2]
[346875288,1735336278484,-1024.424028,0.00012329,2]
[346875289,1735336278494,-1024.424028,0.00012329,2]
[346875290,1735336278503,-1024.424028,0.00012329,2]
[346875291,1735336278512,-1024.424028,0.00012329,2]
[346875292,1735336278521,-1024.424028,0.00012329,2]
[346875293,1735336278531,-1024.424028,0.00012329,2]
[346875294,1735336278540,-1024.424028,0.00012329,2]
[346875295,1735336278549,-1024.424028,0.00012329,2]
[346875296,1735336278558,-1024.424028,0.00012329,2]
[346875297,1735336278567,-1024.424028,0.00012329,2]
[346875298,1735336278578,-1024.424028,0.00012329,2]
[346875299,1735336278587,-151.0,0.00012329,2]
[346875300,1735336278596,-151.0,0.00012329,2]
[346875301,1735336278605,-151.0,0.00012329,2]
[346875302,1735336278615,-151.0,0.00012329,2]
[346875303,1735336278624,-151.0,0.00012329,2]
[346875304,1735336278634,-151.0,0.00012329,2]
[346875305,1735336278643,-151.0,0.00012329,2]
[346875306,1735336278652,-151.0,0.00012329,2]
[346875307,1735336278662,-151.0,0.00012329,2]
[346875308,1735336278671,-151.0,0.00012329,2]
[346875309,1735336278680,-151.0,0.00012329,2]
[346875310,1735336278690,-151.0,0.00012329,2]
[346875311,1735336278699,-151.0,0.00012329,2]
[346875312,1735336278708,-151.0,0.00012329,2]
[346875313,1735336278718,-151.0,0.00012329,2]
[346875314,1735336278727,-151.0,0.00012329,2]
[346875315,1735336278736,-2060.04047947,0.00012329,2]
[346875316,1735336278751,-5092.03285853,0.00012329,2]
[346875317,1735336278760,-151.0,0.00012329,2]
[346875318,1735336278769,-151.0,0.00012329,2]
[346875319,1735336278779,-151.0,0.00012329,2]
[346875320,1735336278788,-151.0,0.00012329,2]
[346875321,1735336278798,-244.960958,0.00012329,2]
[346875322,1735336278807,-244.960958,0.00012329,2]
[346875323,1735336278817,-715.775929,0.00012329,2]
[346875324,1735336278827,-151.0,0.00012329,2]
[346875325,1735336278836,-715.775929,0.00012329,2]
[346875326,1735336278846,-284.387897,0.00012329,2]
[346875327,1735336278855,-284.387897,0.00012329,2]
[346875328,1735336278865,-385.716921,0.00012329,2]
[346875329,1735336278874,-385.716921,0.00012329,2]
[346875330,1735336278883,-405.71784,0.00012329,2]
[346875331,1735336278893,-405.71784,0.00012329,2]
[346875332,1735336278902,-442.104884,0.00012329,2]
[346875333,1735336278911,-442.104884,0.00012329,2]
[346875334,1735336278921,-156.682553,0.00012329,2]
[346875335,1735336278931,-156.682553,0.00012329,2]
[346875336,1735336278941,-151.0,0.00012329,2]
[346875337,1735336278950,-421.117329,0.00012329,2]
[346875338,1735336278960,-421.117329,0.00012329,2]
[346875339,1735336278971,-200.0,0.0001236,2]
[346875340,1735336278980,-260.0,0.0001236,2]
[346875341,1735336278990,-513.86,0.00012382,2]
[346875342,1735336278999,-500.0,0.00012382,2]
[346875343,1735336279009,-386.31958301,0.00012382,2]
[346875344,1735336279019,-500.0,0.00012382,2]
[346875345,1735336279028,-500.0,0.00012382,2]
[346875346,1735336279038,-500.0,0.00012382,2]
[346875347,1735336279048,-523.19,0.00012382,2]
[346875348,1735336279058,-500.0,0.00012382,2]
[346875349,1735336279068,-517.22,0.00012382,2]
[346875350,1735336279077,-500.0,0.00012382,2]
[346875351,1735336279087,-500.0,0.00012382,2]
[346875352,1735336279096,-500.0,0.00012382,2]
[346875353,1735336279105,-500.0,0.00012382,2]
[346875354,1735336279115,-500.0,0.00012382,2]
[346875355,1735336279124,-641.74,0.00012382,2]
[346875356,1735336279134,-524.58,0.00012382,2]
[346875357,1735336279143,-500.0,0.00012382,2]
[346875358,1735336279156,-500.0,0.00012382,2]
[346875359,1735336279165,-500.0,0.00012382,2]
[346875360,1735336279175,-777.86,0.00012382,2]
[346875361,1735336279186,-500.0,0.00012382,2]
[346875362,1735336279195,-656.88,0.00012382,2]
[346875363,1735336279205,-500.0,0.00012382,2]
[346875364,1735336279215,-500.0,0.00012382,2]
[346875365,1735336279224,-500.0,0.00012382,2]
[346875366,1735336279235,-500.0,0.00012382,2]
[346875367,1735336279244,-500.0,0.00012382,2]
[346875368,1735336279254,-500.0,0.00012382,2]
[346875369,1735336279264,-500.0,0.00012382,2]
[346875370,1735336279275,-500.0,0.00012382,2]
[346875371,1735336279284,-500.0,0.00012382,2]
[346875372,1735336279294,-181.19678,0.00012382,2]
[346875373,1735336279304,-500.0,0.00012382,2]
[346875374,1735336279313,-500.0,0.00012382,2]
[346875375,1735336279323,-500.0,0.00012382,2]
[346875376,1735336279333,-151.0,0.00012382,2]
[346875377,1735336279343,-500.0,0.00012382,2]
[346875378,1735336279353,-628.28,0.00012382,2]
[346875379,1735336279363,-500.0,0.00012382,2]
[346875380,1735336279372,-500.0,0.00012382,2]
[346875381,1735336279381,-151.0,0.00012382,2]
[346875382,1735336279391,-500.0,0.00012382,2]
[346875383,1735336279402,-500.0,0.00012382,2]
[346875384,1735336279412,-500.0,0.00012382,2]
[346875385,1735336279422,-643.04,0.00012382,2]
[346875386,1735336279432,-500.0,0.00012382,2]
[346875387,1735336279442,-151.0,0.00012382,2]
[346875388,1735336279452,-500.0,0.00012382,2]
[346875389,1735336279462,-500.0,0.00012382,2]
[346875390,1735336279471,-500.0,0.00012382,2]
[346875391,1735336279482,-739.17,0.00012382,2]
[346875392,1735336279492,-504.48,0.00012382,2]
[346875393,1735336279501,-151.0,0.00012382,2]
[346875394,1735336279511,-500.0,0.00012382,2]
[346875395,1735336279520,-500.0,0.00012382,2]
[346875396,1735336279530,-500.0,0.00012382,2]
[346875397,1735336279540,-647.03,0.00012382,2]
[346875398,1735336279550,-1024.8,0.00012382,2]
[346875399,1735336279559,-500.0,0.00012382,2]
[346875400,1735336279568,-500.0,0.00012382,2]
[346875401,1735336279578,-500.0,0.00012382,2]
[346875402,1735336279587,-500.0,0.00012382,2]
[346875403,1735336279596,-884.78,0.00012382,2]
[346875404,1735336279605,-500.0,0.00012382,2]
[346875405,1735336279615,-151.0,0.00012382,2]
[346875406,1735336279624,-1582.81,0.00012382,2]
[346875407,1735336279634,-534.19,0.00012382,2]
[346875408,1735336279644,-500.0,0.00012382,2]
[346875409,1735336279653,-619.0,0.00012382,2]
[346875410,1735336279663,-642.43,0.00012382,2]
[346875411,1735336279673,-647.9,0.00012382,2]
[346875412,1735336279682,-151.0,0.00012382,2]
[346875413,1735336279693,-529.8,0.00012382,2]
[346875414,1735336279702,-619.96,0.00012382,2]
[346875415,1735336279712,-500.0,0.00012382,2]
[346875416,1735336279721,-697.56,0.00012382,2]
[346875417,1735336279730,-500.0,0.00012382,2]
[346875418,1735336279740,-500.0,0.00012382,2]
[346875419,1735336279750,-644.16,0.00012382,2]
[346875420,1735336279759,-151.0,0.00012382,2]
[346875421,1735336279769,-851.46,0.00012382,2]
[346875422,1735336279778,-657.13,0.00012382,2]
[346875423,1735336279788,-500.0,0.00012382,2]
[346875424,1735336279798,-500.0,0.00012382,2]
[346875425,1735336279809,-519.03,0.00012382,2]
[346875426,1735336279818,-1156.56704,0.00012382,2]
[346875427,1735336279828,-500.0,0.00012382,2]
[346875428,1735336279839,-1156.56704,0.00012382,2]
[346875429,1735336279849,-500.0,0.00012382,2]
[346875430,1735336279859,-500.0,0.00012382,2]
[346875431,1735336279871,-500.0,0.00012382,2]
[346875432,1735336279881,-500.0,0.00012382,2]
[346875433,1735336279891,-603.78,0.00012382,2]
[346875434,1735336279901,-901.23,0.00012382,2]
[346875435,1735336279911,-500.0,0.00012382,2]
[346875436,1735336279920,-500.0,0.00012382,2]
[346875437,1735336279931,-640.42,0.00012382,2]
[346875438,1735336279940,-562.23,0.00012382,2]
[346875439,1735336279950,-500.0,0.00012382,2]
[346875440,1735336279959,-500.0,0.00012382,2]
[346875441,1735336279970,-500.0,0.00012382,2]
[346875442,1735336279980,-500.0,0.00012382,2]
[346875443,1735336279991,-500.0,0.00012382,2]
[346875444,1735336280001,-814.14,0.00012382,2]
[346875445,1735336280012,-500.0,0.00012382,2]
[346875446,1735336280022,-730.18,0.00012382,2]
[346875447,1735336280032,-500.0,0.00012382,2]
[346875448,1735336280043,-413.72027456,0.00012382,2]
[346875449,1735336280053,-500.0,0.00012382,2]
[346875450,1735336280063,-688.13,0.00012382,2]
[346875451,1735336280074,-500.0,0.00012382,2]
[346875452,1735336280084,-960.67,0.00012382,2]
[346875453,1735336280096,-625.0,0.00012382,2]
[346875454,1735336280106,-500.0,0.00012382,2]
[346875455,1735336280116,-500.0,0.00012382,2]
[346875456,1735336280126,-500.0,0.00012382,2]
[346875457,1735336280139,-562.23951428,0.00012382,2]
[346875458,1735336280151,-500.0,0.00012382,2]
[346875459,1735336280161,-537.8,0.00012382,2]
[346875460,1735336280170,-300.07374634,0.00012382,2]
[346875461,1735336280179,-809.76,0.00012382,2]
[346875462,1735336280190,-500.0,0.00012382,2]
[346875463,1735336280199,-500.0,0.00012382,2]
[346875464,1735336280209,-500.0,0.00012382,2]
[346875465,1735336280218,-500.0,0.00012382,2]
[346875466,1735336280228,-500.0,0.00012382,2]
[346875467,1735336280239,-500.0,0.00012382,2]
[346875468,1735336280248,-526.65,0.00012382,2]
[346875469,1735336280257,-500.0,0.00012382,2]
[346875470,1735336280267,-1333.41,0.00012382,2]
[346875471,1735336280276,-477.82978707,0.00012382,2]
[346875472,1735336280285,-500.0,0.00012382,2]
[346875473,1735336280294,-572.12,0.00012382,2]
[346875474,1735336280304,-500.0,0.00012382,2]
[346875475,1735336280314,-852.62,0.00012382,2]
[346875476,1735336280323,-500.0,0.00012382,2]
[346875477,1735336280333,-500.0,0.00012382,2]
[346875478,1735336280342,-669.16,0.00012382,2]
[346875479,1735336280351,-500.0,0.00012382,2]
[346875480,1735336280361,-500.0,0.00012382,2]
[346875481,1735336280371,-1530.35,0.00012382,2]
[346875482,1735336280380,-1249.53,0.00012382,2]
[346875483,1735336280390,-500.0,0.00012382,2]
[346875484,1735336280399,-500.0,0.00012382,2]
[346875485,1735336280409,-1010.19,0.00012382,2]
[346875486,1735336280419,-500.0,0.00012382,2]
[346875487,1735336280429,-899.21,0.00012382,2]
[346875488,1735336280438,-1395.55,0.00012382,2]
[346875489,1735336280448,-955.53,0.00012382,2]
[346875490,1735336280458,-500.0,0.00012382,2]
[346875491,1735336280468,-675.8,0.00012382,2]
[346875492,1735336280478,-1659.52,0.00012382,2]
[346875493,1735336280488,-500.0,0.00012382,2]
[346875494,1735336280499,-500.0,0.00012382,2]
[346875495,1735336280509,-500.0,0.00012382,2]
[346875496,1735336280518,-565.96,0.00012382,2]
[346875497,1735336280528,-2114.0,0.00012382,2]
[346875498,1735336280539,-10774.56,0.00012382,2]
[346875499,1735336280549,-500.0,0.00012382,2]
[346875500,1735336280561,-1052.06,0.00012382,2]
[346875501,1735336280571,-500.0,0.00012382,2]
[346875502,1735336280580,-500.0,0.00012382,2]
[346875503,1735336280590,-602.1,0.00012382,2]
[346875504,1735336280600,-592.67,0.00012382,2]
[346875505,1735336280610,-500.0,0.00012382,2]
[346875506,1735336280621,-500.0,0.00012382,2]
[346875507,1735336280630,-500.0,0.00012382,2]
[346875508,1735336280640,-500.0,0.00012382,2]
[346875509,1735336280651,-1880.76,0.00012382,2]
[346875510,1735336280660,-541.17,0.00012382,2]
[346875511,1735336280670,-1083.23,0.00012382,2]
[346875512,1735336280679,-1792.16,0.00012382,2]
[346875513,1735336280689,-157.06226,0.00012382,2]
[346875514,1735336280699,-1044.48,0.00012382,2]
[346875515,1735336280709,-157.06226,0.00012382,2]
[346875516,1735336280718,-500.0,0.00012382,2]
[346875517,1735336280731,-500.0,0.00012382,2]
[346875518,1735336280741,-518.59,0.00012382,2]
[346875519,1735336280750,-151.0,0.00012382,2]
[346875520,1735336280760,-5794.82,0.00012382,2]
[346875521,1735336280769,-500.0,0.00012382,2]
[346875522,1735336280779,-500.0,0.00012382,2]
[346875523,1735336280789,-922.22,0.00012382,2]
[346875524,1735336280799,-1317.36,0.00012382,2]
[346875525,1735336280808,-1665.0,0.00012382,2]
[346875526,1735336280817,-500.0,0.00012382,2]
[346875527,1735336280827,-868.91,0.00012382,2]
[346875528,1735336280836,-564.22,0.00012382,2]
[346875529,1735336280846,-2039.65034469,0.00012382,2]
[346875530,1735336280861,-334.99965531,0.00012382,2]
[346875531,1735336280871,-216.57284409,0.00012382,2]
[346875532,1735336280882,-295.27715591,0.00012382,2]
[346875533,1735336280895,-619.78,0.00012382,2]
[346875534,1735336280905,-1805.44,0.00012382,2]
[346875535,1735336280915,-500.0,0.00012382,2]
[346875536,1735336280924,-3221.16,0.00012382,2]
[346875537,1735336280935,-151.0,0.00012382,2]
[346875538,1735336280944,-1146.64,0.00012382,2]
[346875539,1735336280954,-524.2,0.00012382,2]
[346875540,1735336280964,-500.0,0.00012382,2]
[346875541,1735336280974,-500.0,0.00012382,2]
[346875542,1735336280983,-2159.25,0.00012382,2]
[346875543,1735336280993,-506.33,0.00012382,2]
[346875544,1735336281002,-4157.24,0.00012382,2]
[346875545,1735336281011,-549.19,0.00012382,2]
[346875546,1735336281021,-2208.58,0.00012382,2]
[346875547,1735336281031,-617.7938593,0.00012382,2]
[346875548,1735336281040,-500.0,0.00012382,2]
[346875549,1735336281050,-4287.51,0.00012382,2]
[346875550,1735336281059,-500.0,0.00012382,2]
[346875551,1735336281069,-818.86,0.00012382,2]
[346875552,1735336281079,-680.75,0.00012382,2]
[346875553,1735336281088,-987.63,0.00012382,2]
[346875554,1735336281097,-500.0,0.00012382,2]
[346875555,1735336281107,-686.54,0.00012382,2]
[346875556,1735336281116,-151.0,0.00012382,2]
[346875557,1735336281126,-510.42,0.00012382,2]
[346875558,1735336281135,-500.0,0.00012382,2]
[346875559,1735336281150,-1280.58,0.00012382,2]
[346875560,1735336281160,-715.73,0.00012382,2]
[346875561,1735336281169,-1024.424028,0.00012382,2]
[346875562,1735336281179,-2173.54,0.00012382,2]
[346875563,1735336281189,-675.24,0.00012382,2]
[346875564,1735336281199,-19975.91,0.00012382,2]
[346875565,1735336281211,-500.0,0.00012382,2]
[346875566,1735336281221,-500.0,0.00012382,2]
[346875567,1735336281232,-518.2,0.00012382,2]
[346875568,1735336281241,-1024.424028,0.00012382,2]
[346875569,1735336281250,-715.3,0.00012382,2]
[346875570,1735336281260,-1718.84,0.00012382,2]
[346875571,1735336281270,-538.22092879,0.00012382,2]
[346875572,1735336281289,-1107.56907121,0.00012382,2]
[346875573,1735336281299,-500.0,0.00012382,2]
[346875574,1735336281308,-225.277596,0.00012382,2]
[346875575,1735336281317,-500.0,0.00012382,2]
[346875576,1735336281327,-919.56,0.00012382,2]
[346875577,1735336281336,-202.930142,0.00012383,2]
[346875578,1735336281345,-151.0,0.00012383,2]
[346875579,1735336281355,-698.98,0.00012383,2]
[346875580,1735336281364,-151.0,0.00012383,2]
[346875581,1735336281374,-151.0,0.00012383,2]
[346875582,1735336281384,-1447.35,0.00012383,2]
[346875583,1735336281398,-1135.24,0.00012383,2]
[346875584,1735336281408,-500.0,0.00012383,2]
[346875585,1735336281417,-500.0,0.00012383,2]
[346875586,1735336281426,-522.04,0.00012383,2]
[346875587,1735336281435,-1446.45,0.00012383,2]
[346875588,1735336281445,-715.08,0.00012383,2]
[346875589,1735336281455,-165.793428,0.00012383,2]
[346875590,1735336281464,-1586.47,0.00012383,2]
[346875591,1735336281473,-760.44,0.00012383,2]
[346875592,1735336281483,-1348.14,0.00012383,2]
[346875593,1735336281492,-2379.61,0.00012383,2]
[346875594,1735336281501,-151.0,0.00012383,2]
[346875595,1735336281511,-1539.31,0.00012383,2]
[346875596,1735336281521,-242.16967,0.00012383,2]
[346875597,1735336281530,-6514.22,0.00012383,2]
[346875598,1735336281539,-4583.19,0.00012383,2]
[346875599,1735336281548,-601.41,0.00012383,2]
[346875600,1735336281557,-771.853167,0.00012383,2]
[346875601,1735336281567,-771.853167,0.00012383,2]
[346875602,1735336281577,-588.01,0.00012383,2]
[346875603,1735336281587,-521.44,0.00012383,2]
[346875604,1735336281597,-500.0,0.00012383,2]
[346875605,1735336281607,-584.63,0.00012383,2]
[346875606,1735336281617,-500.0,0.00012383,2]
[346875607,1735336281627,-1892.34,0.00012383,2]
[346875608,1735336281636,-610.67,0.00012383,2]
[346875609,1735336281649,-500.0,0.00012383,2]
[346875610,1735336281659,-500.0,0.00012383,2]
[346875611,1735336281668,-507.02,0.00012383,2]
[346875612,1735336281678,-500.0,0.00012383,2]
[346875613,1735336281688,-500.0,0.00012383,2]
[346875614,1735336281697,-9987.57,0.00012383,2]
[346875615,1735336281706,-500.0,0.00012383,2]
[346875616,1735336281717,-633.36,0.00012383,2]
[346875617,1735336281727,-500.0,0.00012383,2]
[346875618,1735336281736,-235.25424937,0.00012383,2]
[346875619,1735336281746,-500.0,0.00012383,2]
[346875620,1735336281755,-500.0,0.00012383,2]
[346875621,1735336281764,-694.31,0.00012383,2]
[346875622,1735336281774,-500.0,0.00012383,2]
[346875623,1735336281783,-681.38,0.00012383,2]
[346875624,1735336281793,-151.0,0.00012383,2]
[346875626,1735336281802,-500.0,0.00012383,2]
[346875627,1735336281811,-151.0,0.00012383,2]
[346875628,1735336281820,-7152.073338,0.00012383,2]
[346875629,1735336281829,-500.0,0.00012383,2]
[346875630,1735336281842,-151.0,0.00012383,2]
[346875631,1735336281851,-314.05351991,0.00012383,2]
[346875632,1735336281861,-765.4,0.00012383,2]
[346875633,1735336281870,-500.0,0.00012383,2]
[346875634,1735336281879,-803.37,0.00012383,2]
[346875635,1735336281889,-500.0,0.00012383,2]
[346875636,1735336281902,-502.16,0.00012383,2]
[346875637,1735336281912,-151.0,0.00012383,2]
[346875638,1735336281921,-151.0,0.00012383,2]
[346875639,1735336281930,-500.0,0.00012383,2]
[346875640,1735336281939,-732.69,0.00012383,2]
[346875641,1735336281949,-500.0,0.00012383,2]
[346875642,1735336281958,-500.0,0.00012383,2]
[346875643,1735336281967,-659.83,0.00012383,2]
[346875644,1735336281976,-500.0,0.00012383,2]
[346875645,1735336281986,-1366.87,0.00012383,2]
[346875646,1735336281996,-151.0,0.00012383,2]
[346875647,1735336282005,-500.0,0.00012383,2]
[346875648,1735336282015,-595.6,0.00012383,2]
[346875649,1735336282025,-500.0,0.00012383,2]
[346875650,1735336282035,-500.0,0.00012383,2]
[346875651,1735336282045,-609.19,0.00012383,2]
[346875652,1735336282054,-244.960958,0.00012383,2]
[346875653,1735336282064,-805.68,0.00012383,2]
[346875654,1735336282073,-244.960958,0.00012383,2]
[346875655,1735336282082,-1051.26,0.00012383,2]
[346875656,1735336282095,-557.4,0.00012383,2]
[346875657,1735336282104,-715.775929,0.00012383,2]
[346875658,1735336282114,-151.0,0.00012383,2]
[346875659,1735336282123,-715.775929,0.00012383,2]
[346875660,1735336282133,-791.28,0.00012383,2]
[346875661,1735336282143,-284.387897,0.00012383,2]
[346875662,1735336282157,-424.11015717,0.00012383,2]
[346875663,1735336282167,-1126.95,0.00012383,2]
[346875664,1735336282177,-284.387897,0.00012383,2]
[346875665,1735336282186,-731.1,0.00012383,2]
[346875666,1735336282197,-752.15,0.00012383,2]
[346875667,1735336282206,-500.0,0.00012383,2]
[346875668,1735336282215,-1322.14,0.00012383,2]
[346875669,1735336282225,-385.716921,0.00012383,2]
[346875670,1735336282235,-385.716921,0.00012383,2]
[346875671,1735336282245,-500.0,0.00012383,2]
[346875672,1735336282254,-1550.85,0.00012383,2]
[346875673,1735336282264,-601.57,0.00012383,2]
[346875674,1735336282398,-7603.11,0.00012383,2]
[346875675,1735336282413,-690.9,0.00012383,2]
[346875676,1735336282424,-927.58,0.00012383,2]
[346875677,1735336282434,-1058.16,0.00012383,2]
[346875678,1735336282444,-638.13,0.00012383,2]
[346875679,1735336282453,-693.37187,0.00012383,2]
[346875680,1735336282464,-500.0,0.00012383,2]
[346875681,1735336282474,-405.71784,0.00012383,2]
[346875682,1735336282484,-405.71784,0.00012383,2]
[346875683,1735336282493,-1010.75,0.00012383,2]
[346875684,1735336282503,-442.104884,0.00012383,2]
[346875685,1735336282513,-3832.11,0.00012383,2]
[346875686,1735336282522,-442.104884,0.00012383,2]
[346875687,1735336282532,-156.682553,0.00012383,2]
[346875688,1735336282541,-156.682553,0.00012383,2]
[346875689,1735336282551,-559.24,0.00012383,2]
[346875690,1735336282560,-759.49,0.00012383,2]
[346875691,1735336282570,-1002.16,0.00012383,2]
[346875692,1735336282579,-1655.0,0.00012383,2]
[346875693,1735336282588,-1522.12,0.00012383,2]
[346875694,1735336282598,-592.24,0.00012383,2]
[346875695,1735336282607,-660.86,0.00012383,2]
[346875696,1735336282617,-151.0,0.00012383,2]
[346875697,1735336282626,-500.0,0.00012383,2]
[346875698,1735336282635,-599.88,0.00012383,2]
[346875699,1735336282646,-3239.99,0.00012383,2]
[346875700,1735336282655,-3517.2,0.00012383,2]
[346875701,1735336282665,-935.57,0.00012383,2]
[346875702,1735336282674,-500.0,0.00012383,2]
[346875703,1735336282684,-1678.05,0.00012383,2]
[346875704,1735336282694,-3183.31,0.00012383,2]
[346875705,1735336282703,-854.24,0.00012383,2]
[346875706,1735336282712,-5065.71,0.00012383,2]
[346875707,1735336282721,-421.117329,0.00012383,2]
[346875708,1735336282731,-421.117329,0.00012383,2]
[346875709,1735336282741,-2239.0,0.00012383,2]
[346875710,1735336282751,-525.3,0.00012383,2]
[346875711,1735336282760,-818.32,0.00012383,2]
[346875712,1735336282769,-957.86,0.00012383,2]
[346875713,1735336282778,-615.44,0.00012383,2]
[346875714,1735336282788,-1701.48,0.00012383,2]
[346875715,1735336282797,-1122.53,0.00012383,2]
[346875716,1735336282807,-855.23,0.00012383,2]
[346875717,1735336282817,-1041.51,0.00012383,2]
[346875718,1735336282826,-1925.05,0.00012383,2]
[346875719,1735336282836,-4580.88,0.00012383,2]
[346875720,1735336282845,-530.09,0.00012383,2]
[346875721,1735336282855,-2926.65,0.00012383,2]
[346875722,1735336282864,-1652.43,0.00012383,2]
[346875723,1735336282874,-506.96,0.00012383,2]
[346875724,1735336282883,-606.93,0.00012383,2]
[346875725,1735336282893,-999.73,0.00012383,2]
[346875726,1735336282903,-821.05,0.00012383,2]
[346875727,1735336282913,-2362.14,0.00012383,2]
[346875728,1735336282922,-1414.13,0.00012383,2]
[346875729,1735336282931,-686.27,0.00012383,2]
[346875730,1735336282941,-7044.73,0.00012383,2]
[346875731,1735336282951,-500.0,0.00012383,2]
[346875732,1735336282961,-646.97,0.00012383,2]
[346875733,1735336282970,-500.0,0.00012383,2]
[346875734,1735336282979,-900.32,0.00012383,2]
[346875735,1735336282989,-2139.42,0.00012383,2]
[346875736,1735336282998,-619.54,0.00012383,2]
[346875737,1735336283007,-1232.83,0.00012383,2]
[346875738,1735336283017,-2506.77,0.00012383,2]
[346875739,1735336283027,-500.0,0.00012383,2]
[346875740,1735336283036,-556.85,0.00012383,2]
[346875741,1735336283046,-569.4,0.00012384,2]
[346875742,1735336283056,-906.66,0.00012384,2]
[346875743,1735336283065,-500.0,0.00012384,2]
[346875744,1735336283074,-1024.73,0.00012384,2]